bitfinex-derivatives/quotes_ETHF0:USTF0_20250320
["timestamp","ask_amount","ask_price","bid_price","bid_amount"]
[1742492218715,1.3289,1965.4,1965.3,1.01814]
[1742492219931,4.5532,1965.6,1965.5,1.01804]
[1742492220126,6.90658,1965.6,1965.5,1.01804]
[1742492220329,6.90658,1965.6,1965.4,1.3183]
[1742492220330,6.90658,1965.6,1965.4,2.33635]
[1742492220532,1.3354,1965.5,1965.4,2.33635]
[1742492221526,2.35344,1965.5,1965.4,2.33635]
[1742492221727,2.35344,1965.5,1965.4,1.3183]
[1742492221928,2.35344,1965.5,1965.4,2.33639]
[1742492222127,2.35344,1965.5,1965.4,3.69929]
[1742492223125,1.3354,1965.5,1965.4,3.69929]
[1742492223528,2.35344,1965.5,1965.4,3.69929]
[1742492224234,1.01802,1965.6,1965.5,1.01802]
[1742492224532,1.01804,1965.5,1965.4,2.33634]
[1742492225030,1.01804,1965.5,1965.4,2.33635]
[1742492225534,1.01809,1965.4,1965.3,1.0181]
[1742492225744,1.01808,1965.5,1965.1,7.39151]
[1742492225929,1.3471,1965.5,1965.4,1.01809]
[1742492226130,1.72030156,1965.7,1965.6,1.01798]
[1742492226535,0.70234156,1965.7,1965.6,1.01798]
[1742492227438,2.04944156,1965.7,1965.6,1.01798]
[1742492229337,0.00764156,1965.7,1965.6,4.44498]
[1742492230938,3.8534,1966.2,1965.7,1.01793]
[1742492231144,0.6837,1966.4,1966.3,1.01762]
[1742492231336,2.1058,1966.4,1966.2,1.3557]
[1742492231644,2.1058,1966.4,1966.2,0.6772]
[1742492231645,1.01762,1966.3,1966.2,0.6772]
[1742492231848,2.40572,1966.3,1966.1,4.44368]
[1742492232142,1.01767,1966.2,1966.1,3.426]
[1742492232445,1.01773,1966.1,1966.0,0.00764156]
[1742492234039,2.54453,1966.0,1965.6,1.01798]
[1742492234241,1.01793,1965.7,1965.5,7.65179]
[1742492234540,1.01798,1965.6,1965.5,4.2258]
[1742492234740,1.3621,1965.6,1965.5,4.2258]
[1742492235341,0.7058,1965.9,1965.8,1.01788]
[1742492235540,3.08573,1965.9,1965.8,1.01788]
[1742492235945,1.01788,1965.8,1965.7,3.2078]
[1742492236145,1.01788,1965.8,1965.7,4.22573]
[1742492236146,1.3621,1965.8,1965.7,4.22573]
[1742492236349,0.7058,1965.9,1965.8,1.01788]
[1742492236547,1.3621,1966.0,1965.9,1.01783]
[1742492237140,1.01766,1966.3,1966.1,1.01769]
[1742492237443,0.00764156,1966.4,1966.1,3.2078]
[1742492237444,0.71594156,1966.4,1966.1,3.2078]
[1742492237743,1.37974156,1966.4,1966.3,1.01762]
[1742492238453,2.39731156,1966.4,1966.3,1.01762]
[1742492238650,1.37974156,1966.4,1966.3,1.01762]
[1742492238853,2.39731156,1966.4,1966.3,1.01762]
[1742492239150,2.39731156,1966.4,1966.3,4.22542]
[1742492239955,1.37974156,1966.4,1966.3,4.22542]
[1742492240151,2.39731156,1966.4,1966.3,4.22542]
[1742492240456,1.37974156,1966.4,1966.3,4.22542]
[1742492240846,1.37974156,1966.4,1966.3,5.52232]
[1742492241250,0.00764156,1966.4,1966.3,8.94732]
[1742492241643,0.6628,1966.9,1966.3,8.94732]
[1742492241644,0.66,1967.0,1966.4,2.54386]
[1742492241845,2.3339,1966.8,1966.6,1.01744]
[1742492242150,1.0174,1966.8,1966.7,1.2969]
[1742492242356,1.01747,1966.6,1966.5,6.6328]
[1742492242554,1.01747,1966.6,1966.5,3.2078]
[1742492242951,1.67747,1966.6,1966.5,3.2078]
[1742492243256,0.00764156,1966.7,1966.6,1.01747]
[1742492243448,0.00764156,1966.7,1966.6,3.64667]
[1742492244558,0.00764156,1966.7,1966.6,2.6292]
[1742492244958,0.00764156,1966.7,1966.6,3.64667]
[1742492248148,1.67731,1967.0,1966.6,3.64667]
[1742492248149,1.67726,1967.0,1966.6,3.64667]
[1742492248358,1.01731,1966.9,1966.8,3.2078]
[1742492248860,1.01731,1966.9,1966.8,4.6235]
[1742492249060,1.01731,1966.9,1966.7,4.44139]
[1742492249061,1.01736,1966.8,1966.7,3.424]
[1742492249266,1.01734,1966.9,1966.7,3.424]
[1742492249457,1.01734,1966.9,1966.7,1.4157]
[1742492249664,1.01734,1966.9,1966.7,2.43308]
[1742492250063,1.68493156,1967.0,1966.8,2.41456]
[1742492250265,1.68493156,1967.0,1966.9,1.3972]
[1742492250964,1.01742,1966.7,1966.6,4.5401]
[1742492251165,1.01742,1966.7,1966.6,4.605]
[1742492251663,3.21085156,1967.0,1966.6,5.62247]
[1742492251864,1.01736,1966.8,1966.7,1.3972]
[1742492253058,1.01736,1966.8,1966.7,2.41462]
[1742492253270,1.01736,1966.8,1966.7,1.3972]
[1742492253465,1.01734,1966.9,1966.8,1.01734]
[1742492253767,1.01734,1966.9,1966.8,1.70364]
[1742492254265,1.01734,1966.9,1966.8,3.00624]
[1742492254471,1.01734,1966.9,1966.8,5.1967]
[1742492254663,1.01734,1966.9,1966.8,1.9889]
[1742492254860,1.01734,1966.9,1966.8,3.00626]
[1742492256762,5.10895156,1967.0,1966.9,1.01731]
[1742492256969,5.10890156,1967.0,1966.9,1.3399]
[1742492257669,1.02490156,1967.0,1966.9,1.3399]
[1742492258065,1.02490156,1967.0,1966.9,2.35721]
[1742492258066,0.00764156,1967.0,1966.9,2.35721]
[1742492258668,1.02490156,1967.0,1966.9,2.35721]
[1742492259467,0.00764156,1967.0,1966.9,2.35721]
[1742492259664,1.02490156,1967.0,1966.9,2.35721]
[1742492259861,0.00764156,1967.0,1966.9,2.35721]
[1742492260963,2.44120156,1967.0,1966.9,1.3399]
[1742492261162,1.42394156,1967.0,1966.9,2.35721]
[1742492261672,2.44120156,1967.0,1966.9,2.35721]
[1742492262264,2.44120156,1967.0,1966.9,4.5477]
[1742492262464,1.01731,1966.9,1966.8,0.6863]
[1742492262668,2.36531,1966.9,1966.8,2.0156]
[1742492262876,2.36531,1966.9,1966.8,3.03296]
[1742492263464,1.01736,1966.8,1966.7,3.2078]
[1742492263663,2.36536,1966.8,1966.7,4.5371]
[1742492263867,3.00706,1966.8,1966.7,4.5371]
[1742492265464,3.00706,1966.8,1966.7,1.3293]
[1742492265864,3.00706,1966.8,1966.4,0.00764156]
[1742492265865,1.01752,1966.5,1966.4,0.00764156]
[1742492266169,1.01752,1966.5,1966.4,3.21544156]
[1742492266370,1.01752,1966.5,1966.4,0.00764156]
[1742492266975,1.68392,1966.5,1966.4,0.00764156]
[1742492267179,3.03592,1966.5,1966.4,0.00764156]
[1742492268179,2.36952,1966.5,1966.4,0.00764156]
[1742492268376,2.36952,1966.5,1966.4,0.71974156]
[1742492268580,2.36952,1966.5,1966.4,2.03994156]
[1742492271077,2.36952,1966.5,1966.4,1.32784156]
[1742492271281,2.36952,1966.5,1966.4,0.00764156]
[1742492272780,2.36952,1966.5,1966.4,1.36254156]
[1742492273876,2.36952,1966.5,1966.4,0.00764156]
[1742492274879,3.03322,1966.5,1966.4,0.00764156]
[1742492279083,3.03322,1966.5,1966.4,1.34214156]
[1742492280081,1.01751,1966.6,1966.4,1.34214156]
[1742492280284,1.01751,1966.6,1966.5,1.01752]
[1742492280476,1.01751,1966.6,1966.4,2.01394156]
[1742492280681,1.01751,1966.6,1966.5,1.3695]
[1742492280979,2.42095,1966.7,1966.6,1.01747]
[1742492281285,2.42095,1966.7,1966.6,0.6959]
[1742492281576,2.42095,1966.7,1966.6,2.0654]
[1742492281984,2.42095,1966.7,1966.6,3.08287]
[1742492282981,2.42095,1966.7,1966.6,2.0654]
[1742492283584,1.4035,1966.7,1966.6,3.08287]
[1742492283881,4.7426,1966.9,1966.8,1.01736]
[1742492283882,2.33795,1966.9,1966.8,1.01736]
[1742492284072,2.31172,1966.9,1966.8,1.01736]
[1742492284476,2.31172,1966.9,1966.8,1.299]
[1742492284678,1.02494156,1967.0,1966.8,2.31632]
[1742492284877,2.31934156,1967.0,1966.9,1.299]
[1742492285375,2.31934156,1967.0,1966.7,0.6897]
[1742492285376,1.01736,1966.8,1966.7,0.6897]
[1742492285579,1.01736,1966.8,1966.7,1.299]
[1742492286080,1.01742,1966.7,1966.6,0.6959]
[1742492286279,1.01742,1966.7,1966.6,2.072]
[1742492286280,2.40612,1966.7,1966.6,2.072]
[1742492286684,2.40612,1966.7,1966.6,1.3761]
[1742492286874,2.40612,1966.7,1966.4,0.00764156]
[1742492286875,1.01752,1966.5,1966.4,0.00764156]
[1742492287285,1.01752,1966.5,1966.4,1.02521156]
[1742492287586,1.01752,1966.5,1966.4,0.00764156]
[1742492289687,1.3887,1966.6,1966.4,0.00764156]
[1742492289889,2.40618,1966.6,1966.5,1.01752]
[1742492290090,1.01743,1966.7,1966.6,1.01747]
[1742492290278,2.43573,1966.7,1966.6,2.40427]
[1742492290683,3.42964156,1967.0,1966.6,1.3868]
[1742492290883,2.43565,1966.9,1966.8,1.01736]
[1742492291082,1.4183,1966.9,1966.7,4.5946]
[1742492291283,2.43563,1966.9,1966.8,1.01736]
[1742492291487,2.43563,1966.9,1966.8,2.40416]
[1742492291884,1.01733,1966.9,1966.8,2.40416]
[1742492292090,3.42964156,1967.0,1966.9,1.01731]
[1742492292091,2.44323156,1967.0,1966.9,1.01731]
[1742492292289,2.44323156,1967.0,1966.9,3.09301]
[1742492292986,2.44323156,1967.0,1966.9,2.0757]
[1742492293386,2.44323156,1967.0,1966.9,1.4042]
[1742492295283,1.01736,1966.8,1966.7,3.2078]
[1742492295485,1.01736,1966.8,1966.7,4.5424]
[1742492295695,1.01736,1966.8,1966.7,5.55982]
[1742492296194,1.01736,1966.9,1966.8,1.01736]
[1742492296395,1.01736,1966.9,1966.8,1.3346]
[1742492296596,2.41895156,1967.0,1966.8,1.3346]
[1742492296893,1.01718,1967.2,1967.1,1.01719]
[1742492297094,2.41114,1967.3,1967.2,1.01716]
[1742492297293,1.01716,1967.2,1967.1,1.01717]
[1742492297481,1.01716,1967.2,1967.1,2.35177]
[1742492297688,1.01714,1967.3,1967.2,1.01716]
[1742492297883,2.41108,1967.4,1967.3,1.0171]
[1742492298089,1.01703,1967.5,1967.4,1.01704]
[1742492298289,0.00764156,1967.5,1967.4,3.04445]
[1742492302090,1.02464156,1967.5,1967.4,3.04445]
[1742492303093,1.02464156,1967.5,1967.3,3.2078]
[1742492303094,1.01705,1967.4,1967.3,3.2078]
[1742492303296,1.0171,1967.3,1967.2,1.2931]
[1742492303503,1.0171,1967.3,1967.2,2.31026]
[1742492304096,3.24516156,1967.5,1967.2,2.99346]
[1742492304295,0.00764156,1967.5,1967.3,1.2931]
[1742492304494,0.00764156,1967.5,1967.4,0.6519]
[1742492304896,0.00764156,1967.5,1967.4,1.66895]
[1742492305095,1.02464156,1967.5,1967.4,1.66895]
[1742492305290,1.01705,1967.4,1967.3,1.2931]
[1742492305496,1.3065,1967.4,1967.1,8.3078]
[1742492305693,2.99318,1967.4,1967.1,7.2906]
[1742492305897,1.9761,1967.4,1967.2,1.01716]
[1742492306097,1.0171,1967.3,1967.2,1.01716]
[1742492306500,1.01716,1967.2,1967.1,8.3078]
[1742492306705,2.32366,1967.2,1967.1,8.3078]
[1742492307189,2.32366,1967.2,1967.1,4.8878]
[1742492307395,2.32366,1967.2,1967.1,3.2078]
[1742492310890,2.32366,1967.2,1967.0,1.3887]
[1742492310891,1.01721,1967.1,1967.0,1.3887]
[1742492311095,2.39391,1967.1,1967.0,1.3887]
[1742492311498,0.6696,1967.4,1967.0,1.3887]
[1742492311700,3.21224,1967.4,1967.0,2.40591]
[1742492311901,1.01716,1967.2,1967.0,2.40591]
[1742492312100,1.01716,1967.2,1967.1,1.2995]
[1742492314203,1.01716,1967.2,1967.1,2.31671]
[1742492314901,1.01716,1967.2,1967.1,1.2995]
[1742492315303,1.01716,1967.2,1967.1,2.31671]
[1742492315709,1.01716,1967.2,1967.1,1.2995]
[1742492316311,1.01716,1967.2,1967.1,2.31671]
[1742492316698,1.01716,1967.2,1967.1,1.2995]
[1742492319804,2.31376,1967.2,1967.1,1.2995]
[1742492322012,2.31376,1967.2,1966.9,3.8722]
[1742492322013,1.01726,1967.0,1966.9,3.8722]
[1742492322712,1.67896,1967.0,1966.9,3.8722]
[1742492323400,3.03206,1967.0,1966.9,5.2455]
[1742492323601,3.03206,1967.0,1966.9,4.5811]
[1742492323801,3.03206,1967.0,1966.9,1.3733]
[1742492324009,1.01725,1967.1,1967.0,1.01725]
[1742492324407,1.01725,1967.1,1967.0,2.39055]
[1742492324614,1.01725,1967.1,1967.0,1.3733]
[1742492324809,1.01725,1967.1,1967.0,2.39056]
[1742492325016,2.3703,1967.2,1967.1,1.01721]
[1742492325213,2.3703,1967.2,1967.1,2.043]
[1742492325803,1.0172,1967.2,1967.1,3.06021]
[1742492326315,1.0172,1967.2,1967.1,2.043]
[1742492327403,1.0172,1967.2,1967.1,3.06021]
[1742492328007,2.38424,1967.3,1967.2,1.01716]
[1742492328216,2.38424,1967.3,1967.2,2.98316]
[1742492328609,1.0171,1967.3,1967.2,2.98316]
[1742492330918,1.01709,1967.4,1967.3,1.0171]
[1742492331120,1.01709,1967.4,1967.3,2.4301]
[1742492331615,1.01709,1967.4,1967.3,1.413]
[1742492331816,2.38299,1967.4,1967.3,1.413]
[1742492332515,1.0171,1967.3,1967.2,1.4082]
[1742492332717,3.0935,1967.3,1967.2,1.4082]
[1742492333615,1.0171,1967.3,1967.2,1.4082]
[1742492333818,0.00764156,1967.5,1967.2,7.36999]
[1742492334014,0.00764156,1967.5,1967.3,2.1075]
[1742492334322,1.02468156,1967.5,1967.4,3.10745]
[1742492334617,0.00764156,1967.5,1967.4,3.10745]
[1742492334817,1.02464156,1967.5,1967.4,2.0904]
[1742492335017,2.30874156,1967.5,1967.4,2.0904]
[1742492336318,2.30874156,1967.5,1967.4,3.10745]
[1742492336319,0.00764156,1967.5,1967.4,3.10745]
[1742492336710,1.02464156,1967.5,1967.4,3.10745]
[1742492338216,0.00764156,1967.5,1967.4,3.10745]
[1742492338416,0.00764156,1967.5,1967.4,6.31525]
[1742492342326,0.00764156,1967.5,1967.4,9.73325]
[1742492344126,5.74952,1968.2,1967.5,8.447]
[1742492344424,1.01685,1967.8,1967.6,4.116]
[1742492344633,1.3845,1968.0,1967.7,3.2078]
[1742492344928,5.7489,1968.6,1968.1,1.01666]
[1742492345126,1.0166,1968.3,1968.2,0.68052195]
[1742492345324,1.01654,1968.4,1968.3,1.01658]
[1742492345526,2.40104,1968.4,1968.3,1.4232]
[1742492346523,1.01659,1968.3,1968.2,0.00762195]
[1742492346736,1.3845,1968.3,1968.2,2.44746195]
[1742492347838,1.3845,1968.3,1968.2,1.43082195]
[1742492348043,1.3845,1968.3,1968.2,2.44746195]
[1742492348244,2.40109,1968.3,1968.2,1.43082195]
[1742492349144,1.3845,1968.3,1968.2,2.44746195]
[1742492349345,2.40109,1968.3,1968.2,0.00762195]
[1742492349546,3.09259,1968.3,1968.2,0.00762195]
[1742492350044,3.09259,1968.3,1968.2,1.29102195]
[1742492350434,3.09259,1968.3,1968.2,0.00762195]
[1742492350641,6.50859,1968.3,1968.2,0.00762195]
[1742492355647,4.8005,1968.3,1968.2,0.00762195]
[1742492355951,2.40109,1968.3,1968.2,2.05772195]
[1742492356642,0.68207619,1968.5,1968.2,3.07436195]
[1742492356843,2.31546,1968.4,1968.3,2.0441]
[1742492357040,1.01656,1968.4,1968.3,2.0441]
[1742492359150,1.30647619,1968.5,1968.3,3.06069]
[1742492359345,2.32295619,1968.5,1968.4,1.3066]
[1742492359540,1.02405619,1968.5,1968.4,1.3066]
[1742492359741,2.34445619,1968.5,1968.4,1.3066]
[1742492368256,2.34445619,1968.5,1968.4,2.32314]
[1742492368557,1.32797619,1968.5,1968.4,2.32314]
[1742492369146,0.00757619,1968.5,1968.4,2.32314]
[1742492369347,0.00757619,1968.5,1968.4,5.73814]
[1742492369547,3.04621,1968.9,1968.6,2.54109]
[1742492369755,1.01621,1969.1,1968.7,8.39565]
[1742492369952,0.675,1969.2,1969.1,1.01617]
[1742492370151,0.675,1969.2,1969.1,4.22397]
[1742492370152,1.3549,1969.2,1969.1,4.22397]
[1742492370351,1.01608,1969.3,1969.1,4.22393]
[1742492370559,1.01612,1969.2,1969.1,1.9965]
[1742492370759,2.37102,1969.2,1969.1,0.6697]
[1742492371055,1.3549,1969.2,1969.1,1.68587]
[1742492371254,0.675,1969.4,1969.2,1.01609]
[1742492371556,1.01612,1969.3,1969.2,1.01612]
[1742492372066,1.01612,1969.2,1969.1,4.89367]
[1742492372254,1.01612,1969.2,1969.1,3.8775]
[1742492372566,1.01612,1969.2,1969.1,4.89367]
[1742492372860,1.01612,1969.2,1969.1,3.8775]
[1742492373362,1.01612,1969.2,1969.1,4.89367]
[1742492373556,1.01605,1969.4,1969.3,1.01604]
[1742492373758,1.01612,1969.2,1969.1,4.89367]
[1742492374259,1.3848,1969.4,1969.1,3.8775]
[1742492374457,2.53996,1969.5,1969.1,3.8775]
[1742492374655,1.01611,1969.3,1969.2,1.01611]
[1742492375163,3.91206,1969.5,1969.1,3.8775]
[1742492375363,1.01611,1969.3,1969.2,1.01611]
[1742492375755,2.38813,1969.4,1969.3,1.01607]
[1742492375955,7.33067,1969.7,1969.3,3.8661]
[1742492376159,8.70277,1969.7,1969.3,4.88212]
[1742492376364,1.01602,1969.4,1969.3,3.87372195]
[1742492376861,1.01602,1969.4,1969.3,0.66592195]
[1742492377257,1.01602,1969.4,1969.3,0.00762195]
[1742492377455,1.67622,1969.4,1969.3,0.00762195]
[1742492378164,3.07272,1969.4,1969.3,0.00762195]
[1742492379255,1.01602,1969.4,1969.3,0.00762195]
[1742492379471,1.01599,1969.5,1969.3,1.02365195]
[1742492379665,1.01602,1969.4,1969.3,1.02365195]
[1742492379964,1.01602,1969.4,1969.3,0.00762195]
[1742492380969,2.41792,1969.4,1969.3,0.00762195]
[1742492389175,2.41792,1969.4,1969.3,0.70522195]
[1742492389579,1.4019,1969.4,1969.3,3.91302195]
[1742492389771,0.6638,1969.5,1969.4,1.01602]
[1742492389972,1.67977,1969.5,1969.4,1.306]
[1742492390275,1.01597,1969.5,1969.4,1.306]
[1742492390775,1.01602,1969.4,1969.3,3.21542195]
[1742492390976,1.01602,1969.4,1969.3,1.31362195]
[1742492390977,2.33612,1969.4,1969.3,1.31362195]
[1742492391769,2.33612,1969.4,1969.3,0.00762195]
[1742492395176,2.33612,1969.4,1969.3,1.32182195]
[1742492395879,2.33612,1969.4,1969.3,0.00762195]
[1742492396680,5.74812,1969.4,1969.3,0.00762195]
[1742492396876,5.74812,1969.4,1969.3,1.42662195]
[1742492397881,5.74812,1969.4,1969.3,0.00762195]
[1742492402488,8.95592,1969.4,1969.3,0.00762195]
[1742492406182,8.95592,1969.4,1969.3,1.37492195]
[1742492406589,8.95592,1969.4,1969.3,0.00762195]
[1742492408090,5.74812,1969.4,1969.3,0.00762195]
[1742492413598,2.33612,1969.4,1969.3,0.00762195]
[1742492414195,2.33612,1969.4,1969.3,0.71772195]
[1742492414794,1.01602,1969.4,1969.3,1.41872195]
[1742492415192,1.01602,1969.4,1969.3,2.81442195]
[1742492415394,2.38972,1969.4,1969.3,2.81442195]
[1742492416791,1.01602,1969.4,1969.3,2.81442195]
[1742492418696,2.43742,1969.4,1969.3,2.81442195]
[1742492419597,2.43742,1969.4,1969.3,2.11342195]
[1742492419998,2.43742,1969.4,1969.3,1.40332195]
[1742492420888,1.01602,1969.4,1969.3,1.40332195]
[1742492421290,2.35412,1969.4,1969.3,1.40332195]
[1742492422001,4.56996,1969.4,1968.8,3.2078]
[1742492422303,1.01623,1969.0,1968.9,1.3846]
[1742492422999,9.15919,1969.2,1968.9,1.3846]
[1742492423000,6.6188,1969.2,1968.9,1.3846]
[1742492423199,1.02381195,1969.1,1968.9,2.40086]
[1742492423595,1.02381195,1969.1,1969.0,1.3639]
[1742492424195,0.00762195,1969.1,1969.0,2.38013]
[1742492424796,1.02379195,1969.1,1969.0,1.3639]
[1742492425802,0.00762195,1969.1,1969.0,1.3639]
[1742492425999,1.02379195,1969.1,1969.0,1.3639]
[1742492426192,0.00762195,1969.1,1969.0,1.3639]
[1742492426593,0.00762195,1969.1,1969.0,2.38013]
[1742492426794,3.2078,1969.7,1969.0,7.9827]
[1742492426994,3.2078,1969.7,1969.2,4.22388]
[1742492426995,1.01602,1969.4,1969.2,4.22388]
[1742492427197,1.01602,1969.4,1969.3,1.2999]
[1742492427391,1.01602,1969.4,1969.3,1.961]
[1742492428701,2.32732,1969.4,1969.3,1.961]
[1742492430005,1.01602,1969.4,1969.3,1.961]
[1742492430297,4.52934,1969.5,1969.1,0.6907]
[1742492430502,2.30249,1969.3,1969.2,2.0259]
[1742492433300,1.01628,1968.9,1968.8,0.00762195]
[1742492433605,4.22408,1968.9,1968.8,1.34782195]
[1742492434004,1.01628,1968.9,1968.8,1.34782195]
[1742492434202,1.69528,1968.9,1968.8,1.34782195]
[1742492434805,5.10528,1968.9,1968.8,1.34782195]
[1742492435001,9.72998,1968.9,1968.8,1.34782195]
[1742492435610,6.52218,1968.9,1968.8,1.34782195]
[1742492436700,1.01643,1968.6,1968.5,0.64935]
[1742492436900,1.01641,1968.7,1968.5,1.36085]
[1742492437097,1.01634,1968.8,1968.6,0.6847]
[1742492437806,1.01638,1968.7,1968.6,0.6847]
[1742492438008,1.01637,1968.8,1968.6,2.0922]
[1742492438205,1.01637,1968.8,1968.7,1.4075]
[1742492438401,1.01633,1968.8,1968.7,5.63167]
[1742492438608,1.01633,1968.8,1968.7,1.4075]
[1742492440112,2.41463,1968.8,1968.7,1.4075]
[1742492441816,1.3983,1968.8,1968.7,1.4075]
[1742492442017,2.41463,1968.8,1968.7,1.4075]
[1742492442709,1.3983,1968.8,1968.7,1.4075]
[1742492443013,2.41463,1968.8,1968.7,1.4075]
[1742492443210,2.41463,1968.8,1968.7,2.42388]
[1742492443421,2.41463,1968.8,1968.7,1.4075]
[1742492444120,1.3983,1968.8,1968.7,2.42388]
[1742492444314,2.41463,1968.8,1968.7,2.42388]
[1742492444514,2.41463,1968.8,1968.7,1.4075]
[1742492444715,2.41463,1968.8,1968.7,2.42388]
[1742492445419,2.41463,1968.8,1968.7,1.4075]
[1742492448422,1.01643,1968.6,1968.5,5.59274195]
[1742492448717,1.01643,1968.6,1968.5,4.57627195]
[1742492449822,2.35623,1968.6,1968.5,5.94687195]
[1742492450816,2.35623,1968.6,1968.5,2.73907195]
[1742492451016,2.35623,1968.6,1968.5,2.02757195]
[1742492451815,2.35623,1968.6,1968.5,3.04405195]
[1742492451816,1.3398,1968.6,1968.5,3.04405195]
[1742492452017,5.75618195,1968.9,1968.5,3.04405195]
[1742492452018,0.00762195,1968.9,1968.8,1.01633]
[1742492452212,1.01602,1969.4,1969.3,1.01605]
[1742492452413,3.2078,1970.2,1969.3,3.41]
[1742492452724,1.01597,1969.5,1969.4,5.9361]
[1742492452924,1.01597,1969.5,1969.4,2.7283]
[1742492453623,2.36187,1969.5,1969.4,2.7283]
[1742492454232,2.36187,1969.5,1969.4,1.4092]
[1742492454618,1.01602,1969.4,1969.3,0.00762195]
[1742492454818,2.36192,1969.4,1969.3,0.00762195]
[1742492455922,2.36192,1969.4,1969.3,1.32722195]
[1742492456621,1.01602,1969.4,1969.3,1.32722195]
[1742492461120,1.01602,1969.4,1969.3,0.00762195]
[1742492463033,4.42502,1969.4,1969.3,0.00762195]
[1742492463632,2.4331,1969.5,1969.3,0.00762195]
[1742492463927,1.01598,1969.5,1969.3,1.02366195]
[1742492464129,1.0159,1969.7,1969.5,1.01596]
[1742492464434,1.0158,1969.9,1969.7,1.01585]
[1742492464633,1.01576,1969.9,1969.8,0.7039]
[1742492464819,1.01572,1970.0,1969.8,2.1202]
[1742492465024,1.3428,1970.1,1969.9,2.43204]
[1742492465025,1.01569,1970.1,1969.9,2.43204]
[1742492465222,1.01562,1970.2,1970.0,1.72597]
[1742492465426,1.01562,1970.2,1970.1,1.4163]
[1742492465626,2.35839,1970.3,1970.1,2.43195]
[1742492465827,1.01561,1970.2,1970.1,1.4163]
[1742492466026,4.0613,1970.5,1970.0,3.9181]
[1742492466327,7.99146,1970.5,1970.0,3.9181]
[1742492466633,1.01566,1970.1,1970.0,3.9181]
[1742492466826,1.01566,1970.1,1970.0,0.7103]
[1742492467425,4.7995,1970.3,1970.0,0.7103]
[1742492467630,4.42359,1970.3,1970.1,1.01561]
[1742492467826,2.40703,1970.4,1970.2,1.01559]
[1742492468027,0.6545,1970.5,1970.2,3.2078]
[1742492468333,1.01555,1970.4,1970.3,0.6491]
[1742492469135,6.06428181,1970.7,1970.3,0.6491]
[1742492469330,1.01549,1970.5,1970.4,3.2078]
[1742492469526,1.01549,1970.5,1970.4,3.8692]
[1742492469733,1.01549,1970.5,1970.4,7.2772]
[1742492471938,5.94514,1970.9,1970.5,1.01545]
[1742492472139,1.01544,1970.6,1970.5,1.01545]
[1742492472330,1.01544,1970.6,1970.4,8.29267]
[1742492472531,1.3527,1970.8,1970.5,1.01543]
[1742492472730,1.3527,1970.8,1970.4,7.2772]
[1742492472731,1.01537,1970.7,1970.6,4.2232]
[1742492472932,1.01526,1970.9,1970.6,6.6148]
[1742492473238,1.01526,1970.9,1970.8,4.22309]
[1742492473239,1.01528,1970.9,1970.8,4.22309]
[1742492473440,1.01528,1970.9,1970.8,3.2078]
[1742492473832,1.0153,1970.8,1970.7,0.7103]
[1742492474941,1.0154,1970.6,1970.5,3.407]
[1742492475128,1.0154,1970.6,1970.5,5.13275]
[1742492475331,1.0154,1970.6,1970.5,4.1173]
[1742492475533,3.18093,1970.9,1970.6,1.01537]
[1742492475733,0.6427,1970.9,1970.5,4.1173]
[1742492476040,5.488983,1971.7,1970.8,3.2078]
[1742492476041,6.6138,1971.3,1970.8,3.2078]
[1742492476242,1.01516,1971.1,1970.9,1.3407]
[1742492476439,1.0152,1971.0,1970.9,1.3407]
[1742492476635,3.2078,1971.3,1970.9,1.3407]
[1742492476837,4.5472,1971.3,1970.9,1.3407]
[1742492477042,1.01515,1971.1,1970.9,2.35593]
[1742492477439,4.5472,1971.3,1970.9,2.35592]
[1742492477740,4.5472,1971.3,1970.9,1.3407]
[1742492477741,1.0152,1971.0,1970.9,1.3407]
[1742492478349,1.01519,1971.1,1970.9,2.3559]
[1742492478541,1.01519,1971.1,1971.0,3.406]
[1742492479349,1.0152,1971.0,1970.9,1.3407]
[1742492479546,1.0152,1971.0,1970.9,4.7467]
[1742492479747,1.0152,1971.0,1970.9,5.76195]
[1742492480046,0.6724,1971.4,1971.0,1.01518]
[1742492480242,1.01517,1971.1,1971.0,3.2078]
[1742492481143,1.01517,1971.1,1971.0,4.5198]
[1742492482245,1.01517,1971.1,1971.0,1.312]
[1742492483438,2.5378,1971.2,1970.6,4.22316]
[1742492483641,7.9522,1971.3,1970.6,6.24329]
[1742492483642,1.01531,1970.8,1970.6,6.24329]
[1742492483941,1.01531,1970.8,1970.7,1.3153]
[1742492484347,1.01535,1970.7,1970.6,0.7081]
[1742492484744,9.79209,1970.9,1970.5,1.3153]
[1742492484745,1.0154,1970.6,1970.5,1.3153]
[1742492484941,5.74624,1970.7,1970.3,0.00762195]
[1742492485249,1.0155,1970.4,1970.3,1.32292195]
[1742492486450,1.0155,1970.4,1970.3,0.00762195]
[1742492486743,1.01561,1970.2,1970.1,0.7093]
[1742492486941,1.01566,1970.1,1970.0,4.6265]
[1742492487146,1.01566,1970.1,1970.0,1.4187]
[1742492487443,1.01566,1970.1,1970.0,4.6265]
[1742492487641,1.01566,1970.1,1970.0,1.4187]
[1742492488646,1.01571,1970.0,1969.9,0.00762195]
[1742492488840,1.01571,1970.0,1969.9,1.42632195]
[1742492490745,1.01571,1970.0,1969.9,0.00762195]
[1742492495052,1.01571,1970.0,1969.9,1.31882195]
[1742492495947,1.0157,1970.1,1969.9,2.33457195]
[1742492496147,1.01566,1970.1,1970.0,0.6546]
[1742492496347,1.01566,1970.1,1970.0,1.9817]
[1742492497848,0.00762195,1970.2,1970.0,5.1895]
[1742492498049,1.02324195,1970.2,1970.0,6.20517]
[1742492498254,1.01566,1970.1,1970.0,5.1895]
[1742492498556,0.00762195,1970.2,1970.1,1.01566]